[Event "2nd Gujarat Open 2019"]
[Site "Ahmedabad, Gujarat"]
[Date "2019.09.27"]
[Round "8.2"]
[White "Himanshu, Sharma"]
[Black "Vasquez Schroeder, Rodrigo"]
[Result "1/2-1/2"]
[ECO "B34"]
[WhiteElo "2408"]
[BlackElo "2476"]
[Annotator "ChessBase"]
[PlyCount "202"]
[EventDate "2019.09.22"]
[EventType "swiss"]
[EventCountry "IND"]
[SourceTitle "playchess.com"]
[Source "ChessBase"]
[SourceQuality "1"]
[TimeControl "5400+30"]

1. e4 {[%emt 0:00:00]} c5 {[%emt 0:00:00]} 2. Nc3 {[%emt 0:00:00]} Nc6 {[%emt 0:00:09]} 3. Nge2 {[%emt 0:00:11]} g6 {[%emt 0:00:26]} 4. d4 {[%emt 0:00:28]} cxd4 {[%emt 0:00:06]} 5. Nxd4 {[%emt 0:00:02]} Bg7 {[%emt 0:00:07]} 6. Nde2 {[%emt 0:00:14]} Nf6 {[%emt 0:00:34]} 7. g3 {[%emt 0:03:45]} O-O {[%emt 0:00:31]} 8. Bg2 {[%emt 0:00:02]} d6 {[%emt 0:00:41]} 9. O-O {[%emt 0:00:06]} Rb8 {[%emt 0:00:24]} 10. a4 {[%emt 0:00:05]} a6 {[%emt 0:00:06]} 11. Nd5 {[%emt 0:00:35]} Nd7 {[%emt 0:00:18]} 12. c3 {[%emt 0:01:19]} b5 {[%emt 0:02:55]} 13. axb5 {[%emt 0:00:12]} axb5 {[%emt 0:00:04]} 14. Nd4 {[%emt 0:00:44]} Nde5 {[%emt 0:05:50]} 15. f4 {[%emt 0:07:11]} Nxd4 {[%emt 0:00:32]} 16. fxe5 {[%emt 0:00:09]} Nc6 {[%emt 0:08:16]} 17. exd6 {[%emt 0:00:27]} exd6 {[%emt 0:02:30]} 18. Bf4 {[%emt 0:07:35]} Ne5 {[%emt 0:03:02]} 19. Qd2 {[%emt 0:06:52]} Nc4 {[%emt 0:03:20]} 20. Qf2 {[%emt 0:01:49]} Be6 {[%emt 0:01:32]} 21. Nb4 {[%emt 0:02:04]} Rc8 {[%emt 0:01:20]} 22. Ra6 {[%emt 0:03:18]} Qc7 {[%emt 0:07:42]} 23. Rd1 {[%emt 0:06:58]} Nxb2 {[%emt 0:12:36]} 24. Rdxd6 {[%emt 0:09:21]} Qxc3 {[%emt 0:01:58]} 25. Nc6 {[%emt 0:01:41]} Nd3 {[%emt 0:02:14]} 26. Bd2 {[%emt 0:05:03]} Qxc6 {[%emt 0:23:58]} 27. Rdxc6 {[%emt 0:02:10]} Nxf2 {[%emt 0:00:10]} 28. Kxf2 {[%emt 0:00:08]} Rxc6 {[%emt 0:00:56]} 29. Rxc6 {[%emt 0:00:05]} Ra8 {[%emt 0:00:35]} 30. Bf1 {[%emt 0:07:13]} Bd4+ {[%emt 0:01:54]} 31. Be3 {[%emt 0:02:49]} Ra2+ {[%emt 0:00:32]} 32. Be2 {[%emt 0:00:40]} Bxe3+ {[%emt 0:04:47]} 33. Kxe3 {[%emt 0:00:04]} b4 {[%emt 0:00:06]} 34. Rb6 {[%emt 0:02:42]} Rb2 {[%emt 0:00:12]} 35. h4 {[%emt 0:00:55]} h5 {[%emt 0:00:10]} 36. Ba6 {[%emt 0:02:32]} Rb3+ {[%emt 0:03:40]} 37. Kf2 {[%emt 0:01:05]} Kg7 {[%emt 0:01:07]} 38. e5 {[%emt 0:04:55]} Rb2+ {[%emt 0:00:11]} 39. Ke3 {[%emt 0:02:40]} b3 {[%emt 0:00:13]} 40. Bb7 {[%emt 0:00:45]} Rb1 {[%emt 0:00:30]} 41. Be4 {[%emt 0:01:07]} Rc1 {[%emt 0:00:33]} 42. Rb5 {[%emt 0:01:14]} Re1+ {[%emt 0:02:32]} 43. Kf4 {[%emt 0:01:13]} Kf8 {[%emt 0:00:56]} 44. Rb8+ {[%emt 0:00:41]} Ke7 {[%emt 0:00:10]} 45. Bc6 {[%emt 0:00:56]} Rf1+ {[%emt 0:00:43]} 46. Ke3 {[%emt 0:00:16]} f5 {[%emt 0:00:36]} 47. exf6+ {[%emt 0:11:38]} Kxf6 {[%emt 0:00:38]} 48. Be4 {[%emt 0:00:52]} Bf7 {[%emt 0:01:27]} 49. Bd3 {[%emt 0:01:54]} Rg1 {[%emt 0:00:22]} 50. Kf4 {[%emt 0:00:21]} Rd1 {[%emt 0:00:55]} 51. Rb6+ {[%emt 0:00:09]} Kg7 {[%emt 0:00:18]} 52. Ke3 {[%emt 0:01:41]} Rc1 {[%emt 0:00:22]} 53. Kf4 {[%emt 0:00:37]} Rc3 {[%emt 0:00:18]} 54. Be4 {[%emt 0:00:22]} Rc4 {[%emt 0:00:46]} 55. Ke5 {[%emt 0:00:26]} Rc7 {[%emt 0:00:22]} 56. Kf4 {[%emt 0:00:23]} Re7 {[%emt 0:00:45]} 57. Bd3 {[%emt 0:00:51]} Re6 {[%emt 0:00:12]} 58. Rb7 {[%emt 0:00:21]} Rd6 59. Be4 {[%emt 0:01:23]} Kf6 {[%emt 0:02:05]} 60. Rb8 {[%emt 0:01:10]} Ra6 {[%emt 0:01:05]} 61. Rb4 {[%emt 0:00:52]} Be6 {[%emt 0:00:41]} 62. Rb8 {[%emt 0:01:10]} Bf7 {[%emt 0:01:08]} 63. Rb4 {[%emt 0:00:11]} Rd6 {[%emt 0:00:16]} 64. Rb8 {[%emt 0:00:29]} Rd1 {[%emt 0:03:17]} 65. Rb6+ {[%emt 0:00:10]} Ke7 {[%emt 0:00:27]} 66. Ke5 {[%emt 0:01:15]} Re1 {[%emt 0:02:00]} 67. Rb7+ {[%emt 0:00:12]} Kf8 {[%emt 0:00:02]} 68. Kf4 {[%emt 0:00:36]} Re2 {[%emt 0:00:20]} 69. Kf3 {[%emt 0:00:42]} Re1 {[%emt 0:00:25]} 70. Kf4 {[%emt 0:00:08]} Rg1 {[%emt 0:01:40]} 71. Bd3 {[%emt 0:00:57]} Rg2 {[%emt 0:00:21]} 72. Be4 {[%emt 0:00:12]} Re2 {[%emt 0:00:13]} 73. Kf3 {[%emt 0:00:09]} Rd2 {[%emt 0:01:02]} 74. Ke3 {[%emt 0:00:08]} Rd1 {[%emt 0:00:14]} 75. Bd3 {[%emt 0:01:01]} Rc1 {[%emt 0:00:41]} 76. Be4 {[%emt 0:00:29]} Rc3+ {[%emt 0:00:25]} 77. Kf4 {[%emt 0:00:10]} Rc5 {[%emt 0:00:37]} 78. Ke3 {[%emt 0:01:48]} Re5 {[%emt 0:00:14]} 79. Kf4 {[%emt 0:00:11]} Re7 {[%emt 0:00:13]} 80. Rb6 {[%emt 0:00:26]} Kg7 {[%emt 0:00:09]} 81. Rb8 {[%emt 0:00:42]} Kf6 {[%emt 0:00:21]} 82. Rb6+ {[%emt 0:00:11]} Re6 {[%emt 0:00:04]} 83. Rb8 {[%emt 0:00:46]} Rd6 {[%emt 0:00:27]} 84. Rb4 {[%emt 0:00:55]} Be6 {[%emt 0:00:08]} 85. Rb8 {[%emt 0:00:15]} Rd2 {[%emt 0:00:22]} 86. Ke3 {[%emt 0:00:23]} Rd6 {[%emt 0:00:52]} 87. Kf4 {[%emt 0:00:26]} Bf7 {[%emt 0:02:04]} 88. Rb4 {[%emt 0:00:38]} Ke7 {[%emt 0:01:00]} 89. Rb7+ {[%emt 0:00:09]} Rd7 {[%emt 0:00:39]} 90. Rb6 {[%emt 0:00:08]} Rd1 {[%emt 0:00:07]} 91. Rb7+ {[%emt 0:00:17]} Kf6 {[%emt 0:00:18]} 92. Rb6+ {[%emt 0:00:04]} Kg7 {[%emt 0:00:10]} 93. Rb7 {[%emt 0:01:11]} Rf1+ {[%emt 0:00:08]} 94. Ke3 {[%emt 0:00:20]} Kf6 {[%emt 0:00:17]} 95. Bd3 {[%emt 0:00:38]} Rg1 {[%emt 0:00:43]} 96. Kf4 {[%emt 0:00:10]} Rc1 {[%emt 0:01:56]} 97. Rb6+ {[%emt 0:00:07]} Kg7 {[%emt 0:00:10]} 98. Be4 {[%emt 0:00:42]} Rf1+ {[%emt 0:00:23]} 99. Ke3 Kf8 {[%emt 0:00:17]} 100. Bd3 {[%emt 0:01:15]} Rc1 {[%emt 0:00:35]} 101. Rb7 {[%emt 0:00:40]} Rc6 {[%emt 0:00:57]} 1/2-1/2

[Event "2nd Gujarat Open 2019"]
[Site "Ahmedabad, Gujarat"]
[Date "2019.09.27"]
[Round "8.3"]
[White "Chanda, Sandipan"]
[Black "Konguvel, Ponnuswamy"]
[Result "1/2-1/2"]
[ECO "B08"]
[WhiteElo "2529"]
[BlackElo "2374"]
[Annotator "ChessBase"]
[PlyCount "83"]
[EventDate "2019.09.22"]
[EventType "swiss"]
[EventCountry "IND"]
[SourceTitle "playchess.com"]
[Source "ChessBase"]
[SourceQuality "1"]
[TimeControl "5400+30"]

1. d4 {[%emt 0:00:00]} d6 {[%emt 0:00:00]} 2. e4 {[%emt 0:00:10]} g6 {[%emt 0:00:04]} 3. Nf3 {[%emt 0:01:00]} Bg7 {[%emt 0:00:26]} 4. Be2 {[%emt 0:00:14]} Nf6 {[%emt 0:07:25]} 5. Nc3 {[%emt 0:01:42]} O-O {[%emt 0:00:08]} 6. O-O {[%emt 0:00:07]} Bg4 {[%emt 0:05:50]} 7. Be3 {[%emt 0:01:21]} Nc6 {[%emt 0:12:12]} 8. d5 {[%emt 0:03:39]} Bxf3 {[%emt 0:00:04]} 9. Bxf3 {[%emt 0:00:21]} Ne5 {[%emt 0:00:03]} 10. Be2 {[%emt 0:00:31]} c6 {[%emt 0:00:03]} 11. f4 {[%emt 0:13:52]} Ned7 {[%emt 0:00:26]} 12. dxc6 {[%emt 0:04:17]} bxc6 {[%emt 0:00:04]} 13. Bf3 {[%emt 0:00:59]} Rb8 {[%emt 0:04:38]} 14. Rb1 {[%emt 0:02:26]} Qc7 {[%emt 0:09:55]} 15. Qd3 {[%emt 0:07:05]} Rb7 {[%emt 0:01:13]} 16. b3 {[%emt 0:02:19]} Qa5 {[%emt 0:06:23]} 17. Na4 {[%emt 0:03:02]} Rd8 {[%emt 0:13:34]} 18. Rbd1 {[%emt 0:12:56]} Rbb8 {[%emt 0:00:04]} 19. c4 {[%emt 0:02:19]} Ne8 {[%emt 0:02:12]} 20. Qc2 {[%emt 0:09:08]} Nb6 {[%emt 0:12:13]} 21. Nxb6 {[%emt 0:01:23]} axb6 {[%emt 0:00:03]} 22. Qf2 {[%emt 0:00:17]} b5 {[%emt 0:03:41]} 23. c5 {[%emt 0:01:18]} b4 {[%emt 0:09:12]} 24. e5 {[%emt 0:03:40]} Qc7 {[%emt 0:00:03]} 25. cxd6 {[%emt 0:05:54]} exd6 {[%emt 0:00:04]} 26. Rc1 {[%emt 0:00:27]} dxe5 {[%emt 0:00:49]} 27. Bxc6 {[%emt 0:01:33]} Qe7 {[%emt 0:01:07]} 28. f5 {[%emt 0:04:37]} Rbc8 {[%emt 0:03:31]} 29. h4 {[%emt 0:05:45]} e4 {[%emt 0:04:52]} 30. fxg6 {[%emt 0:03:47]} hxg6 {[%emt 0:00:49]} 31. Bd5 {[%emt 0:00:18]} Rxc1 {[%emt 0:00:40]} 32. Bxf7+ {[%emt 0:00:51]} Kh8 {[%emt 0:00:16]} 33. Rxc1 {[%emt 0:00:12]} Nf6 {[%emt 0:00:34]} 34. Bxg6 {[%emt 0:01:15]} Ng4 {[%emt 0:00:01]} 35. Bg5 {[%emt 0:03:43]} Qd6 {[%emt 0:00:48]} 36. Qf4 {[%emt 0:00:22]} Qd1+ {[%emt 0:02:31]} 37. Qf1 {[%emt 0:00:15]} Qd4+ {[%emt 0:01:35]} 38. Kh1 {[%emt 0:00:01]} Qd6 {[%emt 0:00:28]} 39. Qf4 {[%emt 0:01:43]} Qd1+ {[%emt 0:00:01]} 40. Qf1 {[%emt 0:00:04]} Qd6 {[%emt 0:00:02]} 41. Qf4 {[%emt 0:01:33]} Qd1+ {[%emt 0:00:00]} 42. Qf1 {[%emt 0:00:37]} 1/2-1/2

[Event "2nd Gujarat Open 2019"]
[Site "Ahmedabad, Gujarat"]
[Date "2019.09.27"]
[Round "8.4"]
[White "Eraschenkov, Denis"]
[Black "Saptarshi, Roy"]
[Result "0-1"]
[ECO "A04"]
[WhiteElo "2390"]
[BlackElo "2480"]
[Annotator "ChessBase"]
[PlyCount "68"]
[EventDate "2019.09.22"]
[EventType "swiss"]
[EventCountry "IND"]
[SourceTitle "playchess.com"]
[Source "ChessBase"]
[SourceQuality "1"]
[TimeControl "5400+30"]

1. Nf3 {[%emt 0:00:46]} Nc6 {[%emt 0:00:00]} 2. d4 {[%emt 0:01:42]} d5 {[%emt 0:00:03]} 3. Bf4 {[%emt 0:03:51]} Bg4 {[%emt 0:00:11]} 4. e3 {[%emt 0:01:14]} f6 {[%emt 0:00:08]} 5. Bb5 {[%emt 0:05:08]} e6 {[%emt 0:00:33]} 6. Nbd2 {[%emt 0:04:52]} Bd6 {[%emt 0:00:27]} 7. Bg3 {[%emt 0:03:39]} Nge7 {[%emt 0:00:29]} 8. c4 {[%emt 0:06:43]} O-O {[%emt 0:00:41]} 9. O-O {[%emt 0:09:20]} a6 {[%emt 0:01:14]} 10. cxd5 {[%emt 0:00:50]} exd5 {[%emt 0:00:36]} 11. Bd3 {[%emt 0:03:32]} Bxg3 {[%emt 0:05:53]} 12. hxg3 {[%emt 0:00:13]} f5 {[%emt 0:00:52]} 13. Qb3 {[%emt 0:17:35]} Rb8 {[%emt 0:05:36]} 14. Rfc1 {[%emt 0:06:39]} Kh8 {[%emt 0:01:57]} 15. Rc5 {[%emt 0:01:36]} Rf6 {[%emt 0:02:18]} 16. Rac1 {[%emt 0:03:53]} Rh6 {[%emt 0:05:36]} 17. Ng5 {[%emt 0:01:56]} Qe8 {[%emt 0:01:15]} 18. f4 {[%emt 0:00:47]} Rd6 {[%emt 0:15:27]} 19. Kf2 {[%emt 0:02:00]} Qh5 {[%emt 0:16:09]} 20. a3 {[%emt 0:00:47]} h6 {[%emt 0:04:29]} 21. Nh3 {[%emt 0:04:48]} Qe8 {[%emt 0:06:33]} 22. Nf3 {[%emt 0:03:48]} Re6 {[%emt 0:11:37]} 23. Nhg1 {[%emt 0:05:13]} Qh5 {[%emt 0:11:02]} 24. Ne5 {[%emt 0:00:56]} Nxe5 {[%emt 0:00:09]} 25. dxe5 {[%emt 0:00:11]} c6 {[%emt 0:00:44]} 26. Bxa6 {[%emt 0:04:56]} b5 {[%emt 0:02:06]} 27. a4 {[%emt 0:00:54]} Rg6 {[%emt 0:00:38]} 28. axb5 {[%emt 0:02:58]} Qh2 {[%emt 0:00:07]} 29. Kf1 {[%emt 0:00:22]} Qxg3 {[%emt 0:00:56]} 30. R5c2 {[%emt 0:01:22]} d4 {[%emt 0:00:40]} 31. Ne2 {[%emt 0:01:15]} Bxe2+ {[%emt 0:00:31]} 32. Rxe2 {[%emt 0:00:24]} Nd5 {[%emt 0:00:16]} 33. Qa3 {[%emt 0:01:13]} Nxf4 {[%emt 0:04:52]} 34. Rce1 {[%emt 0:00:58]} Qh2 {[%emt 0:01:22]} 0-1

[Event "2nd Gujarat Open 2019"]
[Site "Ahmedabad, Gujarat"]
[Date "2019.09.27"]
[Round "8.5"]
[White "Nguyen, Van Huy"]
[Black "Karthikeyan, P.."]
[Result "1/2-1/2"]
[ECO "E06"]
[WhiteElo "2454"]
[BlackElo "2408"]
[Annotator "RC"]
[PlyCount "49"]
[EventDate "2019.09.22"]
[EventType "swiss"]
[EventCountry "IND"]
[SourceTitle "playchess.com"]
[Source "ChessBase"]
[SourceQuality "1"]
[TimeControl "5400+30"]

1. d4 {[%emt 0:02:29]} Nf6 {[%emt 0:00:05]} 2. c4 {[%emt 0:00:22]} e6 {[%emt 0:00:08]} 3. Nf3 {[%emt 0:00:27]} d5 {[%emt 0:00:29]} 4. g3 {[%emt 0:00:26]} Be7 {[%emt 0:00:29]} 5. Bg2 {[%emt 0:00:31]} O-O {[%emt 0:00:13]} 6. O-O {[%emt 0:00:05]} dxc4 {[%emt 0:00:05]} 7. Qc2 {[%emt 0:00:10]} b5 {[%emt 0:03:10]} 8. a4 {[%emt 0:00:39]} b4 {[%emt 0:00:26]} 9. Nfd2 {[%emt 0:01:07]} Nd5 {[%emt 0:02:33]} 10. Nxc4 {[%emt 0:03:57]} c5 {[%emt 0:00:09]} 11. dxc5 {[%emt 0:03:19]} Ba6 {[%emt 0:00:07]} 12. Nbd2 {[%emt 0:04:57]} Nd7 {[%emt 0:01:49]} 13. c6 {[%emt 0:08:25]} Nc5 {[%emt 0:01:32]} 14. Nb3 {[%emt 0:01:18]} Rc8 {[%emt 0:08:44]} 15. Ne5 {[%emt 0:09:28]} Nxb3 {[%emt 0:06:17]} 16. Qxb3 {[%emt 0:00:24]} Qd6 {[%emt 0:04:19]} 17. Bf4 {[%emt 0:03:25]} Nxf4 {[%emt 0:01:14]} 18. gxf4 {[%emt 0:00:09]} Bxe2 {[%emt 0:00:08]} 19. Rfe1 {[%emt 0:01:20]} Bh5 {[%emt 0:00:23]} 20. Bf3 {[%emt 0:06:26]} Bxf3 {[%emt 0:02:41]} 21. Qxf3 {[%emt 0:00:12]} Qc7 {[%emt 0:01:36]} 22. Rac1 {[%emt 0:04:21]} Bf6 {[%emt 0:02:48]} 23. Rc4 {[%emt 0:04:10]} Rfd8 {[%emt 0:03:01]} 24. Nd7 {[%emt 0:02:48]} Bxb2 {[%emt 0:03:57]} 25. Rxb4 {[%emt 0:02:53]} 1/2-1/2

[Event "2nd Gujarat Open 2019"]
[Site "Ahmedabad, Gujarat"]
[Date "2019.09.27"]
[Round "8.6"]
[White "Manik, Mikulas"]
[Black "Das, Sayantan"]
[Result "1/2-1/2"]
[ECO "C18"]
[WhiteElo "2375"]
[BlackElo "2434"]
[Annotator "NA"]
[PlyCount "59"]
[EventDate "2019.09.22"]
[EventType "swiss"]
[EventCountry "IND"]
[SourceTitle "playchess.com"]
[Source "ChessBase"]
[SourceQuality "1"]
[TimeControl "5400+30"]

1. e4 {[%emt 0:00:00]} e6 {[%emt 0:01:02]} 2. d4 {[%emt 0:00:00]} d5 {[%emt 0:00:07]} 3. Nc3 {[%emt 0:00:00]} Bb4 {[%emt 0:00:11]} 4. e5 {[%emt 0:00:00]} c5 {[%emt 0:00:23]} 5. a3 {[%emt 0:00:00]} Bxc3+ {[%emt 0:00:09]} 6. bxc3 {[%emt 0:00:00]} Qc7 {[%emt 0:00:28]} 7. Qg4 {[%emt 0:00:47]} f6 {[%emt 0:00:16]} 8. Nf3 {[%emt 0:08:16]} c4 {[%emt 0:00:38]} 9. Be2 {[%emt 0:04:33]} Nc6 {[%emt 0:00:33]} 10. O-O {[%emt 0:08:08]} Qf7 {[%emt 0:06:05]} 11. Qg3 {[%emt 0:13:32]} Nge7 {[%emt 0:00:32]} 12. exf6 {[%emt 0:00:05]} gxf6 {[%emt 0:00:33]} 13. Nh4 {[%emt 0:01:06]} Rg8 {[%emt 0:24:48]} 14. Qd6 {[%emt 0:06:05]} Bd7 {[%emt 0:12:41]} 15. Bf4 {[%emt 0:02:47]} Rd8 {[%emt 0:09:43]} 16. Rae1 {[%emt 0:13:31]} Bc8 {[%emt 0:08:46]} 17. Qc5 {[%emt 0:00:21]} h5 {[%emt 0:04:36]} 18. Bf3 {[%emt 0:07:26]} b6 {[%emt 0:05:24]} 19. Qb5 {[%emt 0:01:24]} Bd7 {[%emt 0:00:16]} 20. Qb2 {[%emt 0:02:24]} Qh7 {[%emt 0:00:56]} 21. Re3 {[%emt 0:14:27]} Kf7 {[%emt 0:03:11]} 22. Qc1 {[%emt 0:03:19]} Ng6 {[%emt 0:04:53]} 23. Nxg6 {[%emt 0:01:21]} Qxg6 {[%emt 0:00:11]} 24. Qd1 {[%emt 0:00:46]} Rh8 {[%emt 0:00:07]} 25. Bc7 {[%emt 0:01:13]} Rdg8 {[%emt 0:02:04]} 26. Bd6 {[%emt 0:00:29]} Qf5 {[%emt 0:02:08]} 27. Kh1 {[%emt 0:01:48]} Nd8 {[%emt 0:05:11]} 28. h3 {[%emt 0:03:48]} Ba4 {[%emt 0:00:20]} 29. Rfe1 {[%emt 0:01:02]} Bxc2 {[%emt 0:03:06]} 30. Qd2 {[%emt 0:00:09]} 1/2-1/2

[Event "2nd Gujarat Open 2019"]
[Site "Ahmedabad, Gujarat"]
[Date "2019.09.27"]
[Round "8.8"]
[White "Hesham, Abdelrahman"]
[Black "Sahoo, Utkal Ranjan"]
[Result "1/2-1/2"]
[ECO "A05"]
[WhiteElo "2396"]
[BlackElo "2329"]
[Annotator "NA RC"]
[PlyCount "144"]
[EventDate "2019.09.22"]
[EventType "swiss"]
[EventCountry "IND"]
[SourceTitle "playchess.com"]
[Source "ChessBase"]
[SourceQuality "1"]
[TimeControl "5400+30"]

1. Nf3 {[%emt 0:03:50]} Nf6 {[%emt 0:00:18]} 2. c4 {[%emt 0:00:04]} e6 {[%emt 0:00:13]} 3. e3 {[%emt 0:00:12]} d5 {[%emt 0:01:19]} 4. b3 {[%emt 0:00:13]} Be7 {[%emt 0:00:18]} 5. Bb2 {[%emt 0:00:08]} b6 {[%emt 0:00:42]} 6. Nc3 {[%emt 0:07:28]} Bb7 {[%emt 0:00:50]} 7. cxd5 {[%emt 0:02:32]} exd5 {[%emt 0:00:26]} 8. Be2 {[%emt 0:00:11]} O-O {[%emt 0:00:37]} 9. O-O {[%emt 0:00:14]} c5 {[%emt 0:02:10]} 10. d4 {[%emt 0:01:50]} Nc6 {[%emt 0:00:28]} 11. dxc5 {[%emt 0:01:09]} bxc5 {[%emt 0:00:40]} 12. Rc1 {[%emt 0:00:07]} Rc8 {[%emt 0:05:38]} 13. Na4 {[%emt 0:05:20]} Ne4 14. Nd2 {[%emt 0:00:20]} Nb4 {[%emt 0:24:45]} 15. a3 {[%emt 0:00:57]} Nxd2 {[%emt 0:02:06]} 16. Qxd2 {[%emt 0:00:08]} Na6 {[%emt 0:00:24]} 17. Rfd1 {[%emt 0:00:36]} Qd6 {[%emt 0:09:11]} 18. Qa5 {[%emt 0:16:51]} Rfd8 {[%emt 0:05:21]} 19. Bg4 {[%emt 0:02:52]} Rb8 {[%emt 0:01:50]} 20. Be2 {[%emt 0:07:44]} h6 {[%emt 0:07:17]} 21. Nc3 {[%emt 0:00:52]} d4 {[%emt 0:02:41]} 22. exd4 {[%emt 0:05:37]} cxd4 {[%emt 0:00:23]} 23. Na4 {[%emt 0:03:28]} Qg6 {[%emt 0:01:05]} 24. Bf1 {[%emt 0:03:42]} Rd5 {[%emt 0:05:57]} 25. Qe1 {[%emt 0:02:27]} Bf6 {[%emt 0:06:28]} 26. Rd3 {[%emt 0:04:01]} Be5 {[%emt 0:01:26]} 27. Qd2 {[%emt 0:01:40]} Rbd8 {[%emt 0:06:08]} 28. f4 {[%emt 0:07:18]} Bf6 {[%emt 0:01:13]} 29. Rg3 {[%emt 0:01:25]} Qf5 {[%emt 0:01:13]} 30. b4 {[%emt 0:05:18]} Qd7 {[%emt 0:05:13]} 31. Qd1 {[%emt 0:01:25]} Bc6 {[%emt 0:01:12]} 32. Bxa6 {[%emt 0:04:45]} Bxa4 {[%emt 0:00:05]} 33. Qd3 {[%emt 0:02:15]} Re8 {[%emt 0:01:19]} 34. Bc4 {[%emt 0:00:22]} Bb5 {[%emt 0:00:56]} 35. a4 {[%emt 0:00:58]} Bxc4 {[%emt 0:00:13]} 36. Qxc4 {[%emt 0:00:04]} Rf5 {[%emt 0:04:11]} 37. Rf3 {[%emt 0:00:46]} Qd6 {[%emt 0:01:38]} 38. Rcf1 {[%emt 0:01:45]} Rd5 {[%emt 0:00:26]} 39. Rd3 {[%emt 0:01:48]} Qd7 {[%emt 0:00:30]} 40. Rc1 {[%emt 0:02:42]} Re3 {[%emt 0:01:19]} 41. Qc8+ {[%emt 0:01:21]} Qxc8 {[%emt 0:00:25]} 42. Rxc8+ {[%emt 0:00:02]} Kh7 {[%emt 0:00:09]} 43. Rd2 {[%emt 0:00:04]} Rb3 {[%emt 0:01:31]} 44. Rc4 {[%emt 0:00:33]} Rf5 {[%emt 0:01:13]} 45. g3 {[%emt 0:02:26]} Be7 {[%emt 0:00:09]} 46. Bxd4 {[%emt 0:01:49]} Bxb4 {[%emt 0:00:07]} 47. Rb2 {[%emt 0:00:21]} Rxb2 {[%emt 0:00:26]} 48. Bxb2 {[%emt 0:00:01]} Bc5+ {[%emt 0:00:17]} 49. Kf1 {[%emt 0:01:22]} Rd5 {[%emt 0:00:01]} 50. Ke2 {[%emt 0:00:27]} f5 {[%emt 0:00:23]} 51. Rc3 {[%emt 0:00:41]} Kg6 {[%emt 0:00:48]} 52. Rd3 {[%emt 0:00:05]} Rxd3 {[%emt 0:00:06]} 53. Kxd3 {[%emt 0:00:01]} Bg1 {[%emt 0:01:32]} 54. Bd4 {[%emt 0:01:44]} Bxh2 {[%emt 0:00:02]} 55. Bxa7 {[%emt 0:00:06]} Bxg3 {[%emt 0:00:06]} 56. Be3 {[%emt 0:00:02]} Be1 {[%emt 0:00:07]} 57. Bd2 {[%emt 0:00:01]} Bf2 {[%emt 0:00:22]} 58. a5 {[%emt 0:00:01]} Ba7 {[%emt 0:00:12]} 59. Be3 {[%emt 0:00:37]} Bb8 {[%emt 0:00:06]} 60. Kc4 {[%emt 0:00:35]} h5 {[%emt 0:00:29]} 61. Bf2 {[%emt 0:02:12]} Bxf4 {[%emt 0:00:02]} 62. a6 {[%emt 0:00:22]} Bb8 {[%emt 0:00:01]} 63. Kd5 {[%emt 0:00:06]} h4 {[%emt 0:01:03]} 64. Bxh4 {[%emt 0:00:05]} Ba7 {[%emt 0:00:04]} 65. Bg3 {[%emt 0:00:54]} Kf7 {[%emt 0:02:41]} 66. Bd6 {[%emt 0:00:55]} Ke8 {[%emt 0:01:42]} 67. Kc6 {[%emt 0:00:11]} g5 {[%emt 0:00:45]} 68. Bc5 {[%emt 0:00:17]} Kd8 {[%emt 0:00:13]} 69. Bxa7 {[%emt 0:01:09]} Kc8 {[%emt 0:00:01]} 70. Kd5 {[%emt 0:00:14]} Kc7 {[%emt 0:00:11]} 71. Ke6 {[%emt 0:00:46]} f4 {[%emt 0:00:08]} 72. Kf5 {[%emt 0:00:07]} f3 {[%emt 0:00:03]} 1/2-1/2

[Event "2nd Gujarat Open 2019"]
[Site "Ahmedabad, Gujarat"]
[Date "2019.09.27"]
[Round "8.9"]
[White "Ziatdinov, Raset"]
[Black "Deepan Chakkravarthy J."]
[Result "0-1"]
[ECO "B44"]
[WhiteElo "2222"]
[BlackElo "2539"]
[Annotator "ChessBase"]
[PlyCount "96"]
[EventDate "2019.09.22"]
[EventType "swiss"]
[EventCountry "IND"]
[SourceTitle "playchess.com"]
[Source "ChessBase"]
[SourceQuality "1"]
[TimeControl "5400+30"]

1. e4 {[%emt 0:00:00]} c5 {[%emt 0:07:27]} 2. Nf3 {[%emt 0:00:00]} e6 {[%emt 0:00:04]} 3. d4 {[%emt 0:00:00]} cxd4 {[%emt 0:00:03]} 4. Nxd4 {[%emt 0:00:02]} Nc6 {[%emt 0:00:10]} 5. Nb5 {[%emt 0:00:26]} d6 {[%emt 0:00:07]} 6. c4 {[%emt 0:00:01]} Nf6 {[%emt 0:00:34]} 7. N1c3 {[%emt 0:00:20]} a6 {[%emt 0:00:07]} 8. Na3 {[%emt 0:00:04]} Be7 {[%emt 0:00:43]} 9. Be2 {[%emt 0:01:00]} O-O {[%emt 0:00:05]} 10. O-O {[%emt 0:00:04]} b6 {[%emt 0:00:26]} 11. Be3 {[%emt 0:00:09]} Ne5 {[%emt 0:00:18]} 12. Rc1 {[%emt 0:00:15]} Bb7 {[%emt 0:00:31]} 13. Qd4 {[%emt 0:04:07]} Rb8 {[%emt 0:02:14]} 14. Rfd1 {[%emt 0:01:12]} Ned7 {[%emt 0:10:46]} 15. b4 {[%emt 0:08:20]} Re8 {[%emt 0:00:49]} 16. Nab1 {[%emt 0:02:17]} Qc7 {[%emt 0:15:44]} 17. Nd2 {[%emt 0:00:22]} Rbc8 {[%emt 0:00:10]} 18. h3 {[%emt 0:05:21]} Qb8 {[%emt 0:03:12]} 19. Nf1 {[%emt 0:03:29]} Bf8 {[%emt 0:01:45]} 20. Ng3 {[%emt 0:02:59]} Rcd8 {[%emt 0:15:19]} 21. a3 {[%emt 0:05:47]} Nc5 {[%emt 0:01:51]} 22. Bg5 {[%emt 0:14:23]} Nb3 {[%emt 0:01:37]} 23. Qxb6 {[%emt 0:01:55]} Nd7 {[%emt 0:01:14]} 24. Qe3 {[%emt 0:00:47]} Nxc1 {[%emt 0:00:05]} 25. Qxc1 {[%emt 0:00:20]} Rc8 {[%emt 0:00:49]} 26. Bf4 {[%emt 0:03:46]} Nb6 {[%emt 0:09:09]} 27. Nh5 {[%emt 0:14:19]} Nxc4 {[%emt 0:02:02]} 28. Rd3 {[%emt 0:06:40]} Kh8 {[%emt 0:07:11]} 29. Rg3 {[%emt 0:02:11]} f6 {[%emt 0:12:33]} 30. Bh6 {[%emt 0:00:25]} Re7 {[%emt 0:00:35]} 31. Nxf6 {[%emt 0:08:26]} gxf6 {[%emt 0:03:29]} 32. Bxf8 {[%emt 0:00:07]} Rxf8 {[%emt 0:00:15]} 33. Bxc4 {[%emt 0:00:04]} Qc8 {[%emt 0:00:53]} 34. Qh6 {[%emt 0:00:54]} Ref7 {[%emt 0:00:37]} 35. Bb3 {[%emt 0:04:27]} Rg8 {[%emt 0:01:39]} 36. Rd3 {[%emt 0:01:08]} Rg5 {[%emt 0:01:09]} 37. h4 {[%emt 0:02:22]} Bxe4 {[%emt 0:00:30]} 38. Re3 {[%emt 0:05:24]} Rxg2+ {[%emt 0:00:05]} 39. Kf1 {[%emt 0:00:05]} Rg6 {[%emt 0:00:16]} 40. Qf4 {[%emt 0:01:02]} Bg2+ {[%emt 0:00:11]} 41. Ke1 {[%emt 0:00:25]} e5 {[%emt 0:00:12]} 42. Qh2 {[%emt 0:00:14]} Rc7 {[%emt 0:00:10]} 43. Kd2 {[%emt 0:01:45]} Bb7 {[%emt 0:00:10]} 44. h5 {[%emt 0:00:18]} Rg2 {[%emt 0:00:21]} 45. Qh4 {[%emt 0:00:08]} Qf5 {[%emt 0:00:05]} 46. Nd1 {[%emt 0:00:18]} Rg4 {[%emt 0:01:04]} 47. Rg3 {[%emt 0:01:07]} Rcg7 {[%emt 0:01:27]} 48. Rxg4 {[%emt 0:00:20]} Rxg4 {[%emt 0:00:21]} 0-1